Cogmind - Beta 17.1 @@@ ROGUE MODE // 2026.08.30 @ 21:33:48 Player: UnderDoug Result: Destroyed by M9-CXT(R) with Subdweller Beam Cannon Performance ------------- Evolutions (0) 0 Regions Visited (2) 400 Robots Destroyed (11) 55 Value Destroyed (336) 336 Prototype IDs (0) 0 Alien Tech Used (0) 0 Bonus (0) 0 TOTAL SCORE: 791 Bonus ------- None Cogmind --------- Core Integrity 0/250 Matter 87/300 Energy 98/100 System Corruption 4% Temperature Cool (9) Movement Core (100) Ox1 Location -10/Subcaves Parts ------- > --- POWER (1) -------- (None) > --- PROPULSION (2) --- (None) > --- UTILITY (2) ------ Targeting Computer ECM Suite > --- WEAPON (2) ------- Battle Rifle > --- INVENTORY (5) ---- Improved Aluminum Leg Improved Aluminum Leg Peak State ------------ > --- POWER ------------ Light Nuclear Core > --- PROPULSION ------- Improved Aluminum Leg Improved Aluminum Leg > --- UTILITY ---------- Targeting Computer ECM Suite > --- WEAPON ----------- Assault Rifle Light Assault Rifle > --- INVENTORY -------- Light Ion Engine Aluminum Leg Aluminum Leg EM Pulse Gun Mining Laser [Rating: 11] Favorites ----------- Power Light Nuclear Core Engine Ion Engine Power Core Light Nuclear Core Propulsion Aluminum Leg Leg Aluminum Leg Wheel Compact Wheel Utility Targeting Computer Device ECM Suite Storage Small Storage Unit Processor Targeting Computer Weapon Assault Rifle Ballistic Gun Assault Rifle Launcher Subdweller Shrapnel Launcher Special Weapon Mining Laser Build | -11 -10 -10 ------- Run | Yrd Mat Sub Slots Evolved . | . . . Power . | . . . Propulsion . | . . . Utility . | . . . Weapon . | . . . Parts Attached 21 | 6 11 4 Power 4 | 1 2 1 Engine 3 | 1 1 1 Core 1 | . 1 . Reactor . | . . . Propulsion 8 | 2 6 . Treads . | . . . Leg 6 | . 6 . Wheel 2 | 2 . . Hover . | . . . Flight . | . . . Utility 4 | 1 3 . Device 2 | . 2 . Storage 1 | 1 . . Processor 1 | . 1 . Hackware . | . . . Protection . | . . . Artifact . | . . . Weapon 5 | 2 . 3 Energy Gun . | . . . Energy Cannon . | . . . Ballistic Gun 3 | 2 . 1 Ballistic Cannon . | . . . Launcher 1 | . . 1 Special Weapon 1 | . . 1 Impact Weapon . | . . . Slashing Weapon . | . . . Piercing Weapon . | . . . Special Melee Weapon . | . . . Unidentified Prototypes . | . . . Parts Lost 9 | . 1 8 Power 3 | . 1 2 Propulsion 2 | . . 2 Utility . | . . . Weapon 4 | . . 4 Highest Loss Streak 6 | . 1 6 To Critical Strikes . | . . . Average Backups 4 | 3 5 4 Power . | . 1 . Propulsion 2 | 2 2 2 Utility . | . . . Weapon 1 | . 1 1 Tool/Special . | . . . Unused Backups 8 | . 5 3 Power . | . . . Propulsion 6 | . 4 2 Utility . | . . . Weapon 1 | . . 1 Tool/Special 1 | . 1 . Average Slot Usage (%) 97 | . 98 93 Engine 5 | . 5 5 Core 8 | . 8 8 Leg 25 | . 25 25 Wheel 2 | . 2 . Device 13 | . 12 14 Storage 1 | . 1 . Processor 12 | . 12 14 Ballistic Gun 27 | . 28 22 Peak Build Rating 11 | 6 11 11 Average Rating 8 | 4 8 9 On Entrance 5 | . 6 11 Avg Prop Armor Cover (%) . | . . . Naked Turns . | . . . Heaviest Build 14 | 13 14 10 Greatest Support 26 | 26 26 26 Greatest Overweight (x) 1 | . . 1 Average Overweight (x) . | . . . Largest Inventory Capacity 8 | 8 8 5 Average Capacity 5 | 6 5 5 Most Carried 8 | 6 8 5 Average Carried 4 | 3 5 4 Final Capacity 8 | 8 5 5 Final Carried 6 | 6 5 2 Class Distribution -------------------- 100% | Mutant Dominant Class ---------------- Mutant | -10/Materials Mutant | -10/Subcaves Resources | -11 -10 -10 ----------- Run | Yrd Mat Sub Matter Collected 507 | 213 216 78 Remotely . | . . . Salvage Created 386 | . 308 78 Parts 28 | . 27 1 Haulers Intercepted . | . . . Recyclers Shooed . | . . . Parts Field Recycled . | . . . Retrieved Matter . | . . . Parts Self-Destructed 3 | . . 3 Prevented . | . . . Parts Restored . | . . . Kills | -11 -10 -10 ------- Run | Yrd Mat Sub Combat Hostiles Destroyed 8 | . 6 2 Guns 7 | . 6 1 AOE 1 | . . 1 Classes Destroyed 4 | . 3 1 Builder 2 | . 2 . Watcher 1 | . 1 . Grunt 6 | . 6 . Subdweller 2 | . . 2 Best Kill Streak 3 | . 3 1 Combat Bots Only 2 | . 2 1 Max Kills in Single Turn 1 | . 1 1 Gunslinging . | . . . Exploded 1 | . . 1 Melee . | . . . Uniques/NPCs Destroyed . | . . . Combat | -11 -10 -10 -------- Run | Yrd Mat Sub Hostile Shots Fired 77 | . 38 39 Missed 21 | . 11 10 Hits 56 | . 27 29 Projectile 56 | . 27 29 Critical Strikes 4 | . 1 3 Damage Taken 1041 | . 348 693 Core 256 | . 80 176 Absorbed by Shields . | . . . Core Remaining (%) 100 | 100 . . Volleys Fired 71 | . 31 40 Largest 2 | . 2 2 Hottest 120 | . 40 120 Shots Fired 128 | . 64 64 Gun 123 | . 64 59 Cannon . | . . . Launcher 3 | . . 3 Special 2 | . . 2 Kinetic 126 | . 64 62 Thermal 2 | . . 2 Explosive . | . . . Electromagnetic . | . . . Robot Hit Streak 15 | . 10 15 Robot Miss Streak 8 | . 8 1 Penetration Max . | . . . Secondary Targets . | . . . Shots Hit Robots 77 | . 42 35 Core Hits 24 | . 18 6 Critical Kills . | . . . Critical Parts Destroyed . | . . . Critical Strikes 1 | . . 1 Destroy 1 | . . 1 Melee Attacks . | . . . Impact . | . . . Slashing . | . . . Piercing . | . . . Sneak Attacks . | . . . Combat Hostiles . | . . . Follow-up Attacks . | . . . Damage Inflicted 800 | . 446 354 Guns 562 | . 446 116 Cannons . | . . . Explosions 238 | . . 238 Melee . | . . . Ramming . | . . . Kinetic 800 | . 446 354 Thermal . | . . . Explosive . | . . . Electromagnetic . | . . . Impact . | . . . Slashing . | . . . Piercing . | . . . Highest Corruption 4 | . 4 4 Average Corruption 2 | . 2 4 Corruption Purged . | . . . Corruption Blocked . | . . . Effects 21 | . 12 9 Message Errors 3 | . 1 2 Matter Fused 5 | . 4 1 Heat Flow Errors 1 | . . 1 Energy Discharges 4 | . 3 1 Parts Fused 1 | . . 1 Data Loss (minor) 3 | . 2 1 Misfires 3 | . 2 1 Weapon Failures 1 | . . 1 Overload Shots . | . . . Overflow Damage 2 | . . 2 Projectiles . | . . . Explosions 2 | . . 2 Melee . | . . . Knockbacks . | . . . Impact . | . . . Kinetic . | . . . Secondary . | . . . Self-Inflicted Damage 9 | . . 9 Shots 2 | . . 2 Rammed . | . . . Targets Rammed . | . . . Kicked . | . . . Crushed . | . . . Highest Temperature 279 | . 16 279 Average Temperature 38 | . 5 119 Received Heat Transfer 729 | . 219 510 Siege Activations . | . . . Martial Activations . | . . . Shielding Activations . | . . . Robots Disrupted . | . . . Combat Hostiles . | . . . Robots Corrupted . | . . . Combat Hostiles . | . . . Parts Fried . | . . . Impact Corruptions . | . . . Robots Melted . | . . . Combat Hostiles . | . . . Parts Melted . | . . . Heat Transferred . | . . . Parts Sabotaged . | . . . Parts Stolen . | . . . Parts Stripped . | . . . Power Chain Reactions . | . . . Alert | -11 -10 -10 ------- Run | Yrd Mat Sub Maximum Alert Level . | . . . Low Security (%) 100 | 100 100 . Level 1 . | . . . Level 2 . | . . . Level 3 . | . . . Level 4 . | . . . Level 5 . | . . . High Security . | . . . Max Security . | . . . Peak Influence 58 | . 58 . Initial . | . . . Average 8 | . 9 . Influence Increases 192 | . 192 . Destroy 0b10 Robot/C 120 | . 120 . Destroy 0b10 Robot/NC 15 | . 15 . Destroy Leader 42 | . 42 . Lose Combat Pursuer 15 | . 15 . Influence Decreases 192 | . 192 . Time Decay 182 | . 182 . Lost Part 10 | . 10 . Squads Dispatched 3 | . 3 . Investigation 2 | . 2 . Extermination . | . . . Reinforcement 1 | . 1 . Assault . | . . . Garrison . | . . . Intercept . | . . . Searches Triggered . | . . . Construction Impeded . | . . . Haulers Reinforced . | . . . Active Scanning Responses . | . . . Cargo Convoy Interrupts . | . . . Stealth | -11 -10 -10 --------- Run | Yrd Mat Sub Distress Signals 1 | . 1 . Communications Jammed . | . . . Distress Signals . | . . . Times Spotted 19 | . 16 3 Peak Tracking Total 3 | . 3 1 Tactical Retreats 5 | . 5 . ECM-based Alert Blocks 6 | . 6 . Traps | -11 -10 -10 ------- Run | Yrd Mat Sub Traps Triggered 3 | . 3 . Indirectly . | . . . Trap Hack Attempts . | . . . Triggered . | . . . Disarmed . | . . . Reprogrammed . | . . . Reused . | . . . Traps Extracted . | . . . Installed . | . . . Triggered . | . . . Machines | -11 -10 -10 ---------- Run | Yrd Mat Sub Machines Disabled . | . . . Max in Single Turn . | . . . Machines Repaired . | . . . Machines Dismantled . | . . . Machines Sabotaged . | . . . Overloaded Fab Kills . | . . . Hacking | -11 -10 -10 --------- Run | Yrd Mat Sub Machines Accessed 6 | . 6 . Terminals 6 | . 6 . Fabricators . | . . . Repair Stations . | . . . Recycling Units . | . . . Scanalyzers . | . . . Garrison Access . | . . . Total Hacks 9 | . 9 . Successful 4 | . 4 . Failed 5 | . 5 . Catastrophic 4 | . 4 . Database Lockouts . | . . . Manual . | . . . Terminals 9 | . 9 . Fabricators . | . . . Repair Stations . | . . . Recycling Units . | . . . Scanalyzers . | . . . Garrison Access . | . . . Terminal Hacks 4 | . 4 . Robot Analysis 1 | . 1 . Alert Level 1 | . 1 . Locate Traps 1 | . 1 . Zone Layout 1 | . 1 . Fabricator Hacks . | . . . Repair Station Hacks . | . . . Recycling Unit Hacks . | . . . Scanalyzer . | . . . Garrison Access Hacks . | . . . Unauthorized Hacks . | . . . Terminals . | . . . Fabricators . | . . . Repair Stations . | . . . Recycling Units . | . . . Scanalyzers . | . . . Garrison Access . | . . . Data Cores Recovered . | . . . Used . | . . . Hacking Detections 4 | . 4 . Full Trace Events 2 | . 2 . Feedback Events . | . . . Feedback Blocked . | . . . Robot Schematics Acquired . | . . . Robots Built . | . . . Authchips . | . . . Time . | . . . Total Robot Build Rating . | . . . Part Schematics Acquired . | . . . Parts Built . | . . . Authchips . | . . . Time . | . . . Total Part Build Rating . | . . . Part Studies Acquired . | . . . Parts Repaired . | . . . Time . | . . . Parts Recycled . | . . . Recycled Matter . | . . . Retrieved Matter . | . . . Retrieved Components . | . . . Parts Scanalyzed . | . . . Part Schematics Acquired . | . . . Parts Damaged . | . . . Bothacking | -11 -10 -10 ------------ Run | Yrd Mat Sub Used RIF Installer . | . . . Robots Hacked . | . . . Non-combat . | . . . Combat . | . . . Robot Hacks Applied . | . . . Relay Couplers Released . | . . . Fabnet Peak Effective % . | . . . Robots Rewired . | . . . Allies Hacked . | . . . Hacks Repelled . | . . . Allies | -11 -10 -10 -------- Run | Yrd Mat Sub Total Allies . | . . . Largest Group . | . . . Highest-Rated Group . | . . . Highest-Rated Ally . | . . . Total Orders . | . . . Ally Attacks . | . . . Total Damage . | . . . Kills . | . . . Allies Corrupted . | . . . Allies Melted . | . . . Intel | -11 -10 -10 ------- Run | Yrd Mat Sub Active Infowar (turns) 1188 | . 926 262 ECM 1188 | . 926 262 Robot Analysis Total 1 | . 1 . Derelict Logs Recovered . | . . . Drone Launches . | . . . Drone Recoveries . | . . . Exploration | -11 -10 -10 ------------- Run | Yrd Mat Sub Turns Passed 1460 | 56 1142 262 Spaces Moved 799 | 44 628 127 Core 2 | 1 . 1 Treads . | . . . Legs 671 | . 545 126 Wheels 126 | 43 83 . Hover . | . . . Flight . | . . . Fastest Speed 50 | 50 90 100 Average Speed 115 | 89 116 119 Slowest Speed 120 | 100 120 120 Overloaded Moves . | . . . Propulsion Burnouts . | . . . Robots Hopped . | . . . Potential Cave-ins . | . . . Cave-ins Triggered . | . . . Exploration Rate (%) 33 | 4 84 11 Regions Visited 2 Branch Regions 1 Pre-discovered Areas . | . . . Known Exits Taken . | . . . Unknown Exits Taken 2 | 1 1 . Scrap Searched . | . . . Spaces Dug . | . . . Terrain Destroyed 39 | . . 39 Melee . | . . . Projectile . | . . . AOE 39 | . . 39 Terrain Rammed . | . . . Walls Destroyed . | . . . Machines Disabled . | . . . Actions | -11 -10 -10 --------- Run | Yrd Mat Sub Total 1223 | 58 990 175 Wait 298 | . 297 1 Move 797 | 43 627 127 Hop . | . . . Pick Up 21 | 9 10 2 Fast Attach 4 | 3 1 . Attach 9 | 3 2 4 Detach . | . . . Swap 8 | . 8 . Drop 15 | . 14 1 Fire 71 | . 31 40 Melee . | . . . Ram . | . . . Kick . | . . . Crush . | . . . Escape Stasis . | . . . Rewire . | . . . Trap . | . . . Miscellaneous . | . . . Route ------- -11/Scrapyard -10/Materials (discovered 5 exits: [*Mat x3] / [*Min] / [*Sub]) -10/Subcaves History --------- Turn | Location | Event 13 | -11/Scrapyard | Discovered new exit (range 16) 57 | -11/Scrapyard | Entered Materials 237 | -10/Materials | Discovered new exit (range 18) 313 | -10/Materials | Build established: Mutant 571 | -10/Materials | Discovered new exit (range 4) 983 | -10/Materials | Discovered new exit (range 10) 1122 | -10/Materials | Discovered new exit (range 3) 1190 | -10/Materials | Discovered new exit (range 8) 1199 | -10/Materials | Entered Subcaves 1200 | -10/Subcaves | Shifting Twisted Machinery released Mak. Light Armor Plating 1201 | -10/Subcaves | Shifting Twisted Machinery released Sub. Shrapnel Launcher 1249 | -10/Subcaves | Shifting Twisted Machinery released Sub. Machine Gun 1259 | -10/Subcaves | Shifting Twisted Machinery released Sub. Machine Gun 1363 | -10/Subcaves | Core integrity fell below 50% 1447 | -10/Subcaves | Ambushed by Subdweller buried in earth 1456 | -10/Subcaves | Core integrity fell below 20% 1461 | -10/Subcaves | Destroyed by M9-CXT(R) with Subdweller Beam Cannon Last Messages --------------- System corrupted: FCS attempts to trigger Assault Rifle. System corrupted: Assault Rifle misfires. Subatomizers dissect the Sub. Monowheel. Imp. Aluminum Leg destroyed. Subatomizers dissect the Sub. Monowheel. Mining Laser destroyed. Critical hit (Meltdown: +300). 0T-RS4(R) suffers critical hit (Destroy). Subatomizers dissect the Sub. Monowheel. Assault Rifle destroyed. M9-CXT(R): "ARGHSUB!" 0T-RS4(R) destroyed. Sub. Shrapnel Launcher destroyed. Destroyed Sub. Shrapnel Launcher. Acquired 26 matter. Imp. Aluminum Leg destroyed. Acquired Battle Rifle. 4=J=UWA>F OO< O0XGPEUMAS,JLPC= Lgt. Ion Engine destroyed. Map ----- +----------------------------------------------------+ | ???????????????????????# #???????????????## | | ??????????????????????? ????????????????# | | ???????????????????????# ##???????????????# | | ??????????????????????## ????????????????### | | ??????????????????????# ?????#####????????##### | | ???????????????????????# ???### #?????????#??# | | ???????????????????????# ##### #???????? ##?# | | ???????????????????????# #???????? ### | | ??????????????????????## ###????? ## | | ??????????????????????# ##?### #??# | | ??????????????????#####< ## #???# | | ??????????????????# #" ## #????# | | ??????????????????# ### " ###????# | | ??????????????????# ######?# "###?????## | | ??????????????????# #" ##??????### "######### | | ?????????????????###?## ##???????## # # ##"# | | ?????????????????#" ?# ##??????# ##[" " | | ??????????????????" ## ##?????# ## " # " | | ???????????????????? ## #?????## #" ##" " | | ?????????????????????#"# #???#### ##" "##""" | | ????????????????????### ##???# ###"" | | ????????????????????# ;# ##???# " #?##" | | ????????????????##??# #???# "##??### | | ?????????????####" #; R #???# " "#?? | | ?????????????# " ; #???## "" ""#? | | ?????????????# "" @ #????### """""? | | ?????????????# #??????# "" ??? | | ?????????????# " #??????## "" "?? | | ???????????? " ;#???????## " #?? | | ???????????? " #???????? [" #?? | | ????????????? ### ???????#### ###?? | | ?????????????## # #??#### "" ??????????# #???? | | ??????????????#?##??????### # ?????????? #???? | | ???????????????????????????########????????? #???? | | ?????????????????????????????????????????????#???? | | ?????????????????????????????????????????????????? | | ?????????????????????????????????????????????????? | | ?????????????????????????????????????????????????? | | ?????????????????????????????????????????????????? | | ?????????????????????????????????????????????????? | | ?????????????????????????????????????????????????? | | ?????????????????????????????????????????????????? | | ?????????????????????????????????????????????????? | | ?????????????????????????????????????????????????? | | ?????????????????????????????????????????????????? | | ?????????????????????????????????????????????????? | | ?????????????????????????????????????????????????? | | ?????????????????????????????????????????????????? | | ?????????????????????????????????????????????????? | | ?????????????????????????????????????????????????? | +----------------------------------------------------+ Best States ------------- Heat Dissipation 35 Energy Generation 14 Energy Capacity 250 Matter Stores 260 Matter Capacity 300 Sight Range 16 Terrain Scan Density 10 ECM Strength 1 Evasion (%) 55 Targeting Accuracy 5 Item Schematics ----------------- None Robot Schematics ------------------ None Fabricated ------------ Nothing Repaired ---------- Nothing Studied --------- None Alien Tech Used ----------------- None Achievements -------------- None Challenges ------------ None Game ------ Seed ReinforcedInterceptCorpse Manual? 0 Play Time 00:16:04 Cumulative 8.2 hours Start 2026.08.30 @ 21:19:37 End 2026.08.30 @ 21:33:48 Sessions 1 Manual Loads 0 Difficulty Rogue Special Mode None Game No. 17 Rogue 17 Adventurer 0 Explorer 0 Win Type - Total 0 Types 0/0/0/0/0/0/0/0/0/0 Lore% 18 Gallery% 11 Achievement% 12 Wizard Run 0 Options --------- Layout 1 ASCII 0 Keyboard 0 Movement Mouse Keybinds 0 Fullscreen 2 Font 24/X11 Map View 50x35 Zoom Use 0% Tactical HUD 0 Map Filters NONE Filters NONE Steam 1 RUN: 1b4c9a89-78ba-45c4-a8b1-73b7afbdb905